fUSD/lending_fUSD_20240614
["ID","MTS","AMOUNT","RATE_DAILY","PERIOD"]
[329477416,1718385056478,-500.0,0.00024109,3]
[329477417,1718385056510,-500.0,0.00024109,3]
[329477418,1718385056521,-500.0,0.00024109,3]
[329477419,1718385056533,-730.88,0.00024109,3]
[329477420,1718385056546,-500.0,0.00024109,3]
[329477421,1718385056586,-500.0,0.00024109,3]
[329477422,1718385056600,-380.06341644,0.00024109,3]
[329477423,1718385056616,-500.0,0.00024109,3]
[329477424,1718385056631,-500.0,0.00024109,3]
[329477425,1718385056643,-500.0,0.00024109,3]
[329477426,1718385056656,-500.0,0.00024109,3]
[329477427,1718385056669,-500.0,0.00024109,3]
[329477428,1718385056680,-500.0,0.00024109,3]
[329477429,1718385056695,-500.0,0.00024109,3]
[329477430,1718385056707,-500.0,0.00024109,3]
[329477431,1718385056731,-500.0,0.00024109,3]
[329477432,1718385056793,-500.0,0.00024109,3]
[329477433,1718385056832,-500.0,0.00024109,3]
[329477434,1718385056843,-500.0,0.00024109,3]
[329477435,1718385056860,-500.0,0.00024109,3]
[329477436,1718385056880,-500.0,0.00024109,3]
[329477437,1718385056892,-500.0,0.00024109,3]
[329477438,1718385056907,-500.0,0.00024109,3]
[329477439,1718385056918,-514.75,0.00024109,3]
[329477440,1718385056931,-500.0,0.00024109,3]
[329477441,1718385056943,-500.0,0.00024109,3]
[329477442,1718385056962,-735.28,0.00024109,3]
[329477443,1718385056980,-500.0,0.00024109,3]
[329477444,1718385056992,-500.0,0.00024109,3]
[329477445,1718385057004,-500.0,0.00024109,3]
[329477446,1718385057027,-500.0,0.00024109,3]
[329477447,1718385057039,-500.0,0.00024109,3]
[329477448,1718385057050,-500.0,0.00024109,3]
[329477449,1718385057066,-525.07,0.00024109,3]
[329477450,1718385057089,-500.0,0.00024109,3]
[329477451,1718385057100,-500.0,0.00024109,3]
[329477452,1718385057111,-500.0,0.00024109,3]
[329477453,1718385057155,-500.0,0.00024109,3]
[329477454,1718385057167,-500.0,0.00024109,3]
[329477455,1718385057202,-1053.96,0.00024109,3]
[329477456,1718385057227,-1591.21,0.00024109,3]
[329477457,1718385057241,-500.0,0.00024109,3]
[329477458,1718385057256,-500.0,0.00024109,3]
[329477459,1718385057274,-500.0,0.00024109,3]
[329477460,1718385057292,-662.57,0.00024109,3]
[329477461,1718385057307,-500.0,0.00024109,3]
[329477462,1718385057319,-1126.19,0.00024109,3]
[329477463,1718385057330,-399.72494654,0.00024109,3]
[329477464,1718385057341,-500.0,0.00024109,3]
[329477465,1718385057353,-439.20223746,0.00024109,3]
[329477466,1718385057366,-3830.52,0.00024109,3]
[329477467,1718385057384,-500.0,0.00024109,3]
[329477468,1718385057399,-500.0,0.00024109,3]
[329477469,1718385057409,-500.0,0.00024109,3]
[329477470,1718385057422,-307.49654253,0.00024109,3]
[329477471,1718385057434,-500.0,0.00024109,3]
[329477472,1718385057445,-696.35,0.00024109,3]
[329477473,1718385057457,-500.0,0.00024109,3]
[329477474,1718385057468,-4230.64,0.00024109,3]
[329477475,1718385057481,-500.0,0.00024109,3]
[329477476,1718385057493,-1291.73,0.00024109,3]
[329477477,1718385057505,-914.17,0.00024109,3]
[329477478,1718385057516,-500.0,0.00024109,3]
[329477479,1718385057532,-500.0,0.00024109,3]
[329477480,1718385057547,-500.0,0.00024109,3]
[329477481,1718385057562,-673.9,0.00024109,3]
[329477482,1718385057584,-500.0,0.00024109,3]
[329477483,1718385057610,-603.62,0.00024109,3]
[329477484,1718385057628,-500.0,0.00024109,3]
[329477485,1718385057646,-958.56,0.00024109,3]
[329477486,1718385057665,-643.2193715,0.00024109,3]
[329477487,1718385057682,-500.0,0.00024109,3]
[329477488,1718385057705,-5109.13,0.00024109,3]
[329477489,1718385057723,-500.0,0.00024109,3]
[329477490,1718385057743,-500.0,0.00024109,3]
[329477491,1718385057757,-500.0,0.00024109,3]
[329477492,1718385057778,-500.0,0.00024109,3]
[329477493,1718385057789,-500.0,0.00024109,3]
[329477494,1718385057804,-705.52,0.00024109,3]
[329477495,1718385057837,-500.0,0.00024109,3]
[329477496,1718385057857,-500.0,0.00024109,3]
[329477497,1718385057871,-500.0,0.00024109,3]
[329477498,1718385057902,-1501.94,0.00024109,3]
[329477499,1718385057914,-2944.09,0.00024109,3]
[329477500,1718385057935,-500.0,0.00024109,3]
[329477501,1718385057960,-4416.53,0.00024109,3]
[329477502,1718385057989,-500.0,0.00024109,3]
[329477503,1718385058004,-500.0,0.00024109,3]
[329477504,1718385058017,-500.0,0.00024109,3]
[329477505,1718385058029,-500.0,0.00024109,3]
[329477506,1718385058049,-500.0,0.00024109,3]
[329477507,1718385058065,-500.0,0.00024109,3]
[329477508,1718385058090,-9529.4,0.00024109,3]
[329477509,1718385058112,-500.0,0.00024109,3]
[329477510,1718385058123,-500.0,0.00024109,3]
[329477511,1718385058136,-571.28615476,0.00024109,3]
[329477512,1718385058151,-500.0,0.00024109,3]
[329477513,1718385058178,-25933.34,0.00024109,3]
[329477514,1718385058200,-8675.89,0.00024109,3]
[329477515,1718385058213,-500.0,0.00024109,3]
[329477516,1718385058225,-500.0,0.00024109,3]
[329477517,1718385058239,-10009.52,0.00024109,3]
[329477518,1718385058257,-835.03,0.00024109,3]
[329477519,1718385058269,-500.0,0.00024109,3]
[329477520,1718385058281,-500.0,0.00024109,3]
[329477521,1718385058297,-500.0,0.00024109,3]
[329477522,1718385058308,-500.0,0.00024109,3]
[329477523,1718385058320,-1031.08,0.00024109,3]
[329477524,1718385058341,-645.03,0.00024109,3]
[329477525,1718385058356,-1439.84,0.00024109,3]
[329477526,1718385058368,-500.0,0.00024109,3]
[329477527,1718385058379,-6781.17,0.00024109,3]
[329477528,1718385058393,-500.0,0.00024109,3]
[329477529,1718385058425,-500.0,0.00024109,3]
[329477530,1718385058441,-546.22,0.00024109,3]
[329477531,1718385058452,-500.0,0.00024109,3]
[329477532,1718385058467,-500.0,0.00024109,3]
[329477533,1718385058478,-1588.88,0.00024109,3]
[329477534,1718385058489,-1903.25,0.00024109,3]
[329477535,1718385058500,-659.95,0.00024109,3]
[329477536,1718385058512,-500.0,0.00024109,3]
[329477537,1718385058523,-1613.76,0.00024109,3]
[329477538,1718385058542,-500.0,0.00024109,3]
[329477539,1718385058554,-616.45,0.00024109,3]
[329477540,1718385058567,-500.0,0.00024109,3]
[329477541,1718385058584,-500.0,0.00024109,3]
[329477542,1718385058620,-11689.23,0.00024109,3]
[329477543,1718385058634,-500.0,0.00024109,3]
[329477544,1718385058646,-500.0,0.00024109,3]
[329477545,1718385058667,-500.0,0.00024109,3]
[329477546,1718385058681,-534.9,0.00024109,3]
[329477547,1718385058694,-500.0,0.00024109,3]
[329477548,1718385058707,-2737.17,0.00024109,3]
[329477549,1718385058720,-711.97,0.00024109,3]
[329477550,1718385058732,-1845.5,0.00024109,3]
[329477551,1718385058749,-988.66,0.00024109,3]
[329477552,1718385058774,-500.0,0.00024109,3]
[329477553,1718385058789,-500.0,0.00024109,3]
[329477554,1718385058802,-3729.41,0.00024109,3]
[329477555,1718385058816,-500.0,0.00024109,3]
[329477556,1718385058855,-1467.83,0.00024109,3]
[329477557,1718385058876,-1299.63,0.00024109,3]
[329477558,1718385058889,-684.17,0.00024109,3]
[329477559,1718385058901,-500.0,0.00024109,3]
[329477560,1718385058913,-500.0,0.00024109,3]
[329477561,1718385058924,-500.0,0.00024109,3]
[329477562,1718385058935,-500.0,0.00024109,3]
[329477563,1718385058955,-500.0,0.00024109,3]
[329477564,1718385058981,-500.0,0.00024109,3]
[329477565,1718385058998,-898.97,0.00024109,3]
[329477566,1718385059010,-1572.5,0.00024109,3]
[329477567,1718385059021,-500.0,0.00024109,3]
[329477568,1718385059034,-500.0,0.00024109,3]
[329477569,1718385059047,-500.0,0.00024109,3]
[329477570,1718385059058,-6170.63,0.00024109,3]
[329477571,1718385059077,-1624.12,0.00024109,3]
[329477572,1718385059125,-500.0,0.00024109,3]
[329477573,1718385059156,-12964.74,0.00024109,3]
[329477574,1718385059169,-1762.64,0.00024109,3]
[329477575,1718385059181,-837.44,0.00024109,3]
[329477576,1718385059198,-5410.91,0.00024109,3]
[329477577,1718385059210,-500.0,0.00024109,3]
[329477578,1718385059222,-500.0,0.00024109,3]
[329477579,1718385059235,-592.3,0.00024109,3]
[329477580,1718385059260,-500.0,0.00024109,3]
[329477581,1718385059273,-500.0,0.00024109,3]
[329477582,1718385059288,-500.0,0.00024109,3]
[329477583,1718385059301,-500.0,0.00024109,3]
[329477584,1718385059312,-500.0,0.00024109,3]
[329477585,1718385059346,-500.0,0.00024109,3]
[329477586,1718385059358,-500.0,0.00024109,3]
[329477587,1718385059369,-683.42,0.00024109,3]
[329477588,1718385059395,-2673.34,0.00024109,3]
[329477589,1718385059407,-4024.05,0.00024109,3]
[329477590,1718385059427,-1611.12,0.00024109,3]
[329477591,1718385059451,-2190.93,0.00024109,3]
[329477592,1718385059470,-1329.82,0.00024109,3]
[329477593,1718385059505,-1962.2,0.00024109,3]
[329477594,1718385059516,-2411.52,0.00024109,3]
[329477595,1718385059535,-500.0,0.00024109,3]
[329477596,1718385059555,-500.0,0.00024109,3]
[329477597,1718385059587,-9956.47,0.00024109,3]
[329477598,1718385059611,-500.0,0.00024109,3]
[329477599,1718385059624,-500.0,0.00024109,3]
[329477600,1718385059635,-3065.32,0.00024109,3]
[329477601,1718385059664,-506.24893441,0.00024109,3]
[329477602,1718385059685,-500.0,0.00024109,3]
[329477603,1718385059700,-500.0,0.00024109,3]
[329477604,1718385059713,-6316.91,0.00024109,3]
[329477605,1718385059727,-3751.6,0.00024109,3]
[329477606,1718385059746,-500.0,0.00024109,3]
[329477607,1718385059757,-5013.22,0.00024109,3]
[329477608,1718385059769,-500.0,0.00024109,3]
[329477609,1718385059781,-2944.05,0.00024109,3]
[329477610,1718385059793,-522.21,0.00024109,3]
[329477611,1718385059804,-500.0,0.00024109,3]
[329477612,1718385059819,-1342.11,0.00024109,3]
[329477613,1718385059844,-500.0,0.00024109,3]
[329477614,1718385059858,-500.0,0.00024109,3]
[329477615,1718385059871,-24540.29,0.00024109,3]
[329477616,1718385059887,-500.0,0.00024109,3]
[329477617,1718385059899,-1735.59,0.00024109,3]
[329477618,1718385059910,-13013.07,0.00024109,3]
[329477619,1718385059932,-5015.49,0.00024109,3]
[329477620,1718385059946,-551.02,0.00024109,3]
[329477621,1718385059962,-4913.76,0.00024109,3]
[329477622,1718385059975,-1970.52,0.00024109,3]
[329477623,1718385059995,-500.0,0.00024109,3]
[329477624,1718385060032,-728.25,0.00024109,3]
[329477625,1718385060044,-949.23,0.00024109,3]
[329477626,1718385060055,-608.81,0.00024109,3]
[329477627,1718385060077,-500.0,0.00024109,3]
[329477628,1718385060109,-1854.76,0.00024109,3]
[329477629,1718385060129,-1854.76,0.00024109,3]
[329477630,1718385060145,-1854.76,0.00024109,3]
[329477631,1718385060158,-1854.76,0.00024109,3]
[329477632,1718385060170,-3621.95,0.00024109,3]
[329477633,1718385060181,-7094.17,0.00024109,3]
[329477634,1718385060193,-500.0,0.00024109,3]
[329477635,1718385060204,-500.0,0.00024109,3]
[329477636,1718385060232,-500.0,0.00024109,3]
[329477637,1718385060243,-2947.09,0.00024109,3]
[329477638,1718385060254,-500.0,0.00024109,3]
[329477639,1718385060269,-500.0,0.00024109,3]
[329477640,1718385060295,-753.78,0.00024109,3]
[329477641,1718385060325,-688.43,0.00024109,3]
[329477642,1718385060345,-3527.13,0.00024109,3]
[329477643,1718385060356,-500.0,0.00024109,3]
[329477644,1718385060375,-1107.46,0.00024109,3]
[329477645,1718385060387,-500.0,0.00024109,3]
[329477646,1718385060398,-500.0,0.00024109,3]
[329477647,1718385060409,-1348.32,0.00024109,3]
[329477648,1718385060420,-703.67,0.00024109,3]
[329477649,1718385060454,-1560.94,0.00024109,3]
[329477650,1718385060466,-500.0,0.00024109,3]
[329477651,1718385060495,-500.0,0.00024109,3]
[329477652,1718385060511,-1280.34,0.00024109,3]
[329477653,1718385060524,-1864.34,0.00024109,3]
[329477654,1718385060542,-500.0,0.00024109,3]
[329477655,1718385060559,-500.0,0.00024109,3]
[329477656,1718385060573,-500.0,0.00024109,3]
[329477657,1718385060598,-3715.07,0.00024109,3]
[329477658,1718385060616,-500.0,0.00024109,3]
[329477659,1718385060628,-17003.79,0.00024109,3]
[329477660,1718385060642,-500.0,0.00024109,3]
[329477661,1718385060658,-500.0,0.00024109,3]
[329477662,1718385060671,-491.89906972,0.00024109,3]
[329477663,1718385060691,-500.0,0.00024109,3]
[329477664,1718385060708,-2019.14,0.00024109,3]
[329477665,1718385060729,-500.0,0.00024109,3]
[329477666,1718385060747,-579.59,0.00024109,3]
[329477667,1718385060762,-500.0,0.00024109,3]
[329477668,1718385060775,-1498.58,0.00024109,3]
[329477669,1718385060786,-500.0,0.00024109,3]
[329477670,1718385060801,-1383.18,0.00024109,3]
[329477671,1718385060816,-500.0,0.00024109,3]
[329477672,1718385060845,-844.33,0.00024109,3]
[329477673,1718385060880,-500.0,0.00024109,3]
[329477674,1718385060895,-1000.85,0.00024109,3]
[329477675,1718385060922,-947.68,0.00024109,3]
[329477676,1718385060936,-2134.18,0.00024109,3]
[329477677,1718385060950,-500.0,0.00024109,3]
[329477678,1718385060965,-6062.86,0.00024109,3]
[329477679,1718385060979,-1386.83,0.00024109,3]
[329477680,1718385060991,-1099.92,0.00024109,3]
[329477681,1718385061004,-500.0,0.00024109,3]
[329477682,1718385061034,-1379.1,0.00024109,3]
[329477683,1718385061070,-2211.78,0.00024109,3]
[329477684,1718385061114,-1018.52,0.00024109,3]
[329477685,1718385061125,-500.0,0.00024109,3]
[329477686,1718385061149,-500.0,0.00024109,3]
[329477687,1718385061181,-1560.99,0.00024109,3]
[329477688,1718385061213,-171.45421636,0.00024109,3]
[329477689,1718385061240,-670.75,0.00024109,3]
[329477690,1718385061252,-8922.62,0.00024109,3]
[329477691,1718385061264,-500.0,0.00024109,3]
[329477692,1718385061275,-7345.55,0.00024109,3]
[329477693,1718385061287,-557.63,0.00024109,3]
[329477694,1718385061302,-344.22771164,0.00024109,3]
[329477695,1718385061794,-479.24228836,0.00024109,3]
[329477696,1718385061812,-215.38771164,0.00024109,3]
[329477697,1718385061895,-284.61228836,0.00024109,3]
[329477698,1718385061914,-500.0,0.00024109,3]
[329477699,1718385061945,-500.0,0.00024109,3]
[329477700,1718385061966,-546.4,0.00024109,3]
[329477701,1718385062031,-191.70429604,0.00024109,3]
[329477702,1718385062054,-500.0,0.00024109,3]
[329477703,1718385062072,-1228.83570396,0.00024109,3]
[329477704,1718385062105,-1337.9,0.00024109,3]
[329477705,1718385062134,-763.45,0.00024109,3]
[329477706,1718385062164,-10.65069656,0.00024109,3]
[329477707,1718385062334,-489.34930344,0.00024109,3]
[329477708,1718385062350,-500.0,0.00024109,3]
[329477709,1718385062363,-500.0,0.00024109,3]
[329477710,1718385062413,-448.79485099,0.00024109,3]
[329477711,1718385062435,-718.17514901,0.00024109,3]
[329477712,1718385062448,-295.34164066,0.00024109,3]
[329477713,1718385062463,-339.54223515,0.00024109,3]
[329477714,1718385062508,-648.14925961,0.00024109,3]
[329477715,1718385062524,-125.81686458,0.00024109,3]
[329477716,1718385062539,-156.11255542,0.00024109,3]
[329477717,1718385062667,-819.22744458,0.00024109,3]
[329477718,1718385062680,-1376.92,0.00024109,3]
[329477719,1718385062708,-500.0,0.00024109,3]
[329477720,1718385062722,-500.0,0.00024109,3]
[329477721,1718385062772,-500.0,0.00024109,3]
[329477722,1718385062796,-1053.05,0.00024109,3]
[329477723,1718385062814,-1544.93,0.00024109,3]
[329477724,1718385062831,-268.07010932,0.00024109,2]
[329477725,1718385062847,-500.0,0.00024109,3]
[329477726,1718385062883,-862.46,0.00024109,3]
[329477727,1718385062894,-12116.72817659,0.00024109,2]
[329477728,1718385062913,-539.47382203,0.00024136,2]
[329477729,1718385062935,-3084.56859922,0.00024224,2]
[329477730,1718385062953,-180.0,0.0002423,2]
[329477731,1718385062973,-170.0,0.00024255,2]
[329477732,1718385063004,-1001.86,0.000243,2]
[329477733,1718385063020,-314.34,0.000243,2]
[329477734,1718385063049,-4929.448274,0.00024324,2]
[329477735,1718385063062,-161.469332,0.00024324,2]
[329477736,1718385063073,-171.666384,0.00024324,2]
[329477737,1718385063090,-158.943114,0.00024324,2]
[329477738,1718385063123,-4377.812757,0.00024324,2]
[329477739,1718385063140,-180.999396,0.00024324,2]
[329477740,1718385063177,-176.826941,0.00024324,2]
[329477741,1718385063190,-86.16650406,0.00024324,2]
[329477742,1718385063291,-94.94633194,0.00024324,2]
[329477743,1718385063313,-3658.23354901,0.00024353,2]
[329477744,1718385063343,-5361.531,0.00024353,2]
[329477745,1718385063374,-50989.84886329,0.00024353,2]
[329477746,1718385063388,-77468.08331846,0.00024363,2]
[329477747,1718385063414,-2091.65,0.00024363,2]
[329477748,1718385063545,-10172.99999991,0.00024363,2]
[329477749,1718385063574,-3255.0,0.00024363,2]
[329477750,1718385063628,-4139.75197198,0.00024363,2]
[329477751,1718385063648,-22891.74153465,0.00024363,2]
[329477752,1718385063661,-162.73623419,0.00024363,2]
[329477753,1718385063675,-1854.76,0.00024372,3]
[329477754,1718385063709,-821.0,0.00024373,2]
[329477755,1718385063724,-6002.24893805,0.00024373,2]
[329477756,1718385063748,-25896.87249875,0.00024373,2]
[329477757,1718385063765,-9411.26014652,0.00024373,2]
[329477758,1718385063779,-894.05213537,0.00024373,2]
[329477759,1718385063796,-25574.52361261,0.00024373,2]
[329477760,1718385063814,-17403.23722484,0.00024373,2]
[329477761,1718385063835,-4832.22556236,0.00024373,2]
[329477762,1718385063859,-675.49153764,0.00024382,3]
[329477763,1718385064014,-1179.26846236,0.00024382,3]
[329477764,1718385064026,-502.85769999,0.00024382,3]
[329477765,1718385064115,-1351.90230001,0.00024382,3]
[329477766,1718385064130,-17.63455219,0.00024383,3]
[329477767,1718385064190,-482.36544781,0.00024383,3]
[329477768,1718385064202,-22.93455219,0.00024383,3]
[329477769,1718385064217,-425.80000015,0.00024383,3]
[329477770,1718385064258,-51.26544766,0.00024383,3]
[329477771,1718385064270,-500.0,0.00024383,3]
[329477772,1718385064296,-500.0,0.00024383,3]
[329477773,1718385064308,-510.21933912,0.00024383,2]
[329477774,1718385064319,-500.0,0.00024383,3]
[329477775,1718385064332,-541.98,0.00024383,3]
[329477776,1718385064362,-500.0,0.00024383,3]
[329477777,1718385064395,-500.0,0.00024383,3]
[329477778,1718385064428,-500.0,0.00024383,3]
[329477779,1718385064442,-500.0,0.00024383,3]
[329477780,1718385064472,-1156.03,0.00024383,3]
[329477781,1718385064488,-500.0,0.00024383,3]
[329477782,1718385064502,-500.0,0.00024383,3]
[329477783,1718385064521,-500.0,0.00024383,3]
[329477784,1718385064539,-679.37,0.00024383,3]
[329477785,1718385064581,-555.85,0.00024383,3]
[329477786,1718385064599,-1666.65,0.00024383,3]
[329477787,1718385064620,-500.0,0.00024383,3]
[329477788,1718385064644,-500.0,0.00024383,3]
[329477789,1718385064655,-963.26,0.00024383,3]
[329477790,1718385064670,-500.0,0.00024383,3]
[329477791,1718385064687,-562.99,0.00024383,3]
[329477792,1718385064707,-500.0,0.00024383,3]
[329477793,1718385064722,-500.0,0.00024383,3]
[329477794,1718385064741,-1026.35,0.00024383,3]
[329477795,1718385064768,-500.0,0.00024383,3]
[329477797,1718385064787,-500.0,0.00024383,3]
[329477798,1718385064808,-312.75157417,0.00024383,3]
[329477799,1718385065743,58933.90466853,0.0002,2]
[329477800,1718385183559,153597.0,0.000273,60]
[329477801,1718385241800,300.0,0.00019725,2]
[329477802,1718385283814,304.61863798,0.00017259,2]
[329477806,1718385524691,391.91144955,0.00017259,2]
[329477807,1718385640703,250.0,0.00015174,2]
[329477808,1718385668815,250.0,0.00015174,2]
[329477809,1718385772219,178844.3696761,0.00015174,2]
[329477811,1718385834769,600.28,0.00015174,2]
[329477812,1718385835159,600.28,0.00017071,2]
[329477813,1718385835364,600.28,0.00018968,2]
[329477815,1718386031171,14580.67807697,0.00017259,2]
[329477836,1718386233752,-528.11,0.00020655,2]
[329477837,1718386233764,-600.28,0.00020864,2]
[329477838,1718386233786,-1250.0,0.00021,2]
[329477839,1718386233818,-150.98,0.0002121,2]
[329477840,1718386233847,-499.99,0.00021214,2]
[329477841,1718386233883,-152.9,0.00021214,2]
[329477842,1718386233897,-150.98,0.00021216,2]
[329477843,1718386233913,-150.0,0.00022214,2]
[329477844,1718386233934,-3399.43915909,0.00022247,2]
[329477845,1718386233967,-386.55945984,0.00022247,2]
[329477846,1718386234000,-9808.80551303,0.00022247,2]
[329477847,1718386234019,-2248.41586804,0.00022247,2]
[329477848,1718386234035,-250.0,0.0002227,2]
[329477849,1718386234064,-192.15,0.00022285,2]
[329477850,1718386234127,-577.69,0.00022324,2]
[329477851,1718386234158,-434.29,0.00022461,2]
[329477852,1718386234171,-250.0,0.00022613,2]
[329477853,1718386234184,-600.28,0.00022761,2]
[329477854,1718386234204,-528.11,0.00022919,2]
[329477855,1718386234245,-1300.0,0.00023,2]
[329477856,1718386234301,-152.79,0.00023176,2]
[329477857,1718386234314,-171.53,0.00023181,2]
[329477858,1718386234377,-150.1,0.0002324,2]
[329477859,1718386234396,-900.0,0.000237,8]
[329477860,1718386234427,-1900.0,0.000238,8]
[329477861,1718386234443,-199.81622812,0.00023887,2]
[329477862,1718386234464,-2900.0,0.000239,8]
[329477863,1718386234481,-272.7966,0.00023909,2]
[329477864,1718386234507,-2022.0521,0.00023909,2]
[329477865,1718386234534,-3255.02186028,0.00023985,2]
[329477866,1718386234581,-22645.503,0.00023989,2]
[329477867,1718386234603,-549.89601157,0.00024,2]
[329477868,1718386234628,-1500.0,0.00024,2]
[329477869,1718386234641,-1500.0,0.00024,2]
[329477870,1718386234653,-1500.0,0.00024,2]
[329477871,1718386234665,-1500.0,0.00024,2]
[329477872,1718386234690,-1500.0,0.00024,2]
[329477873,1718386234708,-1500.0,0.00024,2]
[329477874,1718386234734,-1689.19,0.00024,2]
[329477875,1718386234752,-1500.0,0.00024,2]
[329477876,1718386234767,-1500.0,0.00024,2]
[329477877,1718386234779,-1500.0,0.00024,2]
[329477878,1718386234793,-17005.0,0.00024,2]
[329477879,1718386234818,-332.9388092,0.00024,2]
[329477880,1718386234830,-919.70031352,0.00024,2]
[329477881,1718386234849,-1624.86434005,0.00024007,2]
[329477882,1718386234893,-621.20003601,0.00024008,2]
[329477883,1718386234906,-1027.96715026,0.00024008,2]
[329477884,1718386234965,-262.98117107,0.00024009,2]
[329477885,1718386234990,-156.9093182,0.00024009,2]
[329477886,1718386235008,-238.53417675,0.00024009,2]
[329477887,1718386235021,-170.47702347,0.00024098,2]
[329477888,1718386235034,-186.63281502,0.00024099,2]
[329477889,1718386235057,-251044.60454064,0.00024099,2]
[329477890,1718386235121,-36432.63671632,0.00024099,2]
[329477891,1718386235141,-11356.46133304,0.00024099,2]
[329477892,1718386235161,-3270.48850594,0.00024099,2]
[329477893,1718386235409,-27887.93546406,0.00024099,2]
[329477894,1718386235429,-151.67,0.00024099,2]
[329477895,1718386235444,-2058.7735572,0.000241,2]
[329477897,1718386235464,-252.42905979,0.00024107,2]
[329477899,1718386235484,-560.09394104,0.00024108,2]
[329477901,1718386235508,-500.0,0.00024109,3]
[329477903,1718386235524,-505.99152848,0.00024109,3]
[329477905,1718386235550,-162.46209032,0.00024109,3]
[329477907,1718386235565,-393.52069921,0.00024109,3]
[329477908,1718386235586,-500.0,0.00024109,3]
[329477909,1718386235664,-496.23354386,0.00024109,3]
[329477910,1718386235677,-500.0,0.00024109,3]
[329477911,1718386235691,-500.0,0.00024109,3]
[329477912,1718386235724,-412.06288712,0.00024109,3]
[329477913,1718386235738,-210.4866573,0.00024109,3]
[329477914,1718386235762,-278.47963357,0.00024109,3]
[329477915,1718386235795,-515.18410975,0.00024109,3]
[329477916,1718386235817,-512.20453013,0.00024109,3]
[329477917,1718386235859,-505.59956126,0.00024109,3]
[329477918,1718386235872,-500.0,0.00024109,3]
[329477919,1718386235886,-500.0,0.00024109,3]
[329477920,1718386235898,-500.0,0.00024109,3]
[329477921,1718386235918,-156.17633272,0.00024109,3]
[329477922,1718386235946,-252.52573798,0.00024109,3]
[329477923,1718386235976,-500.0,0.00024109,3]
[329477924,1718386236003,-500.0,0.00024109,3]
[329477925,1718386236017,-500.0,0.00024109,3]
[329477926,1718386236062,-500.0,0.00024109,3]
[329477927,1718386236073,-159.16759094,0.00024109,3]
[329477928,1718386236090,-511.05333988,0.00024109,3]
[329477929,1718386236111,-626.6660688,0.00024109,3]
[329477930,1718386236132,-232.63328009,0.00024109,3]
[329477931,1718386236164,-500.0,0.00024109,3]
[329477932,1718386236196,-500.0,0.00024109,3]
[329477933,1718386236219,-500.0,0.00024109,3]
[329477934,1718386236234,-500.0,0.00024109,3]
[329477935,1718386236313,-593.65544834,0.00024109,3]
[329477936,1718386236333,-503.79008712,0.00024109,3]
[329477937,1718386236353,-543.46376708,0.00024109,3]
[329477938,1718386236399,-500.0,0.00024109,3]
[329477939,1718386236480,-500.0,0.00024109,3]
[329477940,1718386236493,-520.33886666,0.00024109,3]
[329477941,1718386236537,-500.0,0.00024109,3]
[329477942,1718386236552,-604.63206474,0.00024109,3]
[329477943,1718386236572,-515.59815118,0.00024109,3]
[329477944,1718386236597,-500.0,0.00024109,3]
[329477945,1718386236610,-530.54766845,0.00024109,3]
[329477946,1718386236625,-174.29535091,0.00024109,3]
[329477947,1718386236646,-500.0,0.00024109,3]